fUSD/lending_fUSD_20240408
["ID","MTS","AMOUNT","RATE_DAILY","PERIOD"]
[321841229,1712560232685,-640.0,0.00019112,2]
[321841230,1712560232694,-499.99,0.00019283,2]
[321841231,1712560232704,-229.5,0.00019284,2]
[321841232,1712560232714,-332.8,0.00019514,2]
[321841233,1712560232722,-196.08,0.00019565,2]
[321841234,1712560232731,-2338.17693328,0.00019668,2]
[321841235,1712560232746,-831.65306672,0.00019668,2]
[321841236,1712560232756,-200.69989185,0.00019769,2]
[321841237,1712560232772,-159.30010815,0.00019769,2]
[321841238,1712560232782,-1296.33667789,0.00019789,2]
[321841239,1712560232791,-168.72,0.00019877,2]
[321841241,1712560232800,-4572.46475471,0.00019999,2]
[321841243,1712560232809,-11097.20615615,0.0002,2]
[321841245,1712560232818,-1762.62324428,0.0002,2]
[321841247,1712560232828,-1407.39609209,0.0002,2]
[321841249,1712560232837,-177.59,0.00020179,2]
[321841251,1712560232846,-905.99,0.00020378,2]
[321841253,1712560232855,-213.9639,0.000204,2]
[321841255,1712560232865,-187.8,0.000204,2]
[321841257,1712560232874,-150.0,0.000205,2]
[321841259,1712560232883,-639.0,0.00020548,2]
[321841262,1712560232892,-3380.47958841,0.0002058,2]
[321841263,1712560232901,-613.16248124,0.0002059,2]
[321841266,1712560232910,-613.16248121,0.00020624,2]
[321841268,1712560232920,-273.823,0.00020625,2]
[321841270,1712560232930,-3053.07455906,0.00020625,2]
[321841272,1712560232941,-600.07144094,0.00020625,2]
[321841274,1712560232950,-613.16248121,0.00020659,2]
[321841276,1712560232959,-246.77969303,0.0002069,2]
[321841278,1712560232968,-613.16248121,0.00020693,2]
[321841280,1712560232977,-246.77969296,0.00020713,2]
[321841282,1712560232986,-386.99193833,0.00020725,2]
[321841284,1712560232995,-613.16248121,0.00020728,2]
[321841286,1712560233005,-246.77969296,0.00020737,2]
[321841287,1712560233015,-386.99193833,0.0002075,2]
[321841289,1712560233025,-246.77969296,0.0002076,2]
[321841291,1712560233034,-386.99193833,0.00020775,2]
[321841293,1712560233043,-246.77969296,0.00020783,2]
[321841295,1712560233052,-69.03459764,0.00020787,2]
[321841298,1712560233064,-4435.987438,0.00020787,2]
[321841314,1712560238144,-155.0,0.00018585,2]
[321841316,1712560238154,-779.51255381,0.00018585,2]
[321841318,1712560238164,-3374.83061436,0.00018586,2]
[321841320,1712560238173,-8884.61561225,0.00018586,2]
[321841322,1712560238183,-424.14737924,0.00020762,2]
[321841330,1712560238399,-189.01510197,0.00020762,2]
[321841331,1712560238408,-13210.08615841,0.00020787,2]
[321841332,1712560238417,-613.16248121,0.00020797,2]
[321841333,1712560238427,-70111.2498,0.000208,2]
[321841334,1712560238436,-327.57797893,0.000208,2]
[321841335,1712560238475,-6379.90822107,0.000208,2]
[321841336,1712560238485,-5560.09177893,0.000208,2]
[321841337,1712560238511,-516.075,0.000208,2]
[321841338,1712560238523,-23869.79432107,0.000208,2]
[321841339,1712560238534,-386.99193833,0.000208,2]
[321841340,1712560238543,-342.04766776,0.000208,2]
[321841341,1712560238552,-246.77969296,0.00020807,2]
[321841342,1712560238561,-2402.27120256,0.0002082,2]
[321841343,1712560238570,-500.0,0.00020821,2]
[321841344,1712560238584,-500.0,0.00020821,2]
[321841345,1712560238593,-500.0,0.00020821,2]
[321841346,1712560238602,-500.0,0.00020821,2]
[321841348,1712560238611,-163.9004635,0.00020821,2]
[321841349,1712560238621,-500.0,0.00020821,2]
[321841350,1712560238631,-575.80588153,0.00020821,2]
[321841351,1712560238641,-500.0,0.00020821,2]
[321841352,1712560238649,-500.0,0.00020821,2]
[321841353,1712560238659,-500.0,0.00020821,2]
[321841354,1712560238670,-177.10457451,0.00020821,2]
[321841355,1712560238679,-500.0,0.00020821,2]
[321841356,1712560238689,-500.0,0.00020821,2]
[321841357,1712560238697,-500.0,0.00020821,2]
[321841358,1712560238707,-624.26,0.00020821,2]
[321841359,1712560238717,-301.96792133,0.00020821,2]
[321841360,1712560238726,-500.0,0.00020821,2]
[321841361,1712560238735,-500.0,0.00020821,2]
[321841362,1712560238745,-500.0,0.00020821,2]
[321841363,1712560238756,-500.0,0.00020821,2]
[321841364,1712560238766,-500.0,0.00020821,2]
[321841365,1712560238776,-629.6,0.00020821,2]
[321841366,1712560238785,-500.0,0.00020821,2]
[321841367,1712560238794,-416.29100844,0.00020821,2]
[321841368,1712560238803,-500.0,0.00020821,2]
[321841369,1712560238814,-500.0,0.00020821,2]
[321841370,1712560238823,-500.0,0.00020821,2]
[321841371,1712560238832,-500.0,0.00020821,2]
[321841372,1712560238842,-500.0,0.00020821,2]
[321841373,1712560238851,-500.0,0.00020821,2]
[321841374,1712560238861,-500.0,0.00020821,2]
[321841375,1712560238871,-500.0,0.00020821,2]
[321841376,1712560238881,-500.0,0.00020821,2]
[321841377,1712560238891,-500.0,0.00020821,2]
[321841378,1712560238902,-692.7,0.00020821,2]
[321841379,1712560238911,-692.7,0.00020821,2]
[321841380,1712560238920,-692.7,0.00020821,2]
[321841381,1712560238930,-513.31,0.00020821,2]
[321841382,1712560238939,-513.31,0.00020821,2]
[321841383,1712560238948,-513.31,0.00020821,2]
[321841384,1712560238958,-500.0,0.00020821,2]
[321841385,1712560238968,-500.0,0.00020821,2]
[321841386,1712560238977,-500.0,0.00020821,2]
[321841387,1712560238986,-500.0,0.00020821,2]
[321841388,1712560238995,-638.67689456,0.00020821,2]
[321841389,1712560239004,-500.0,0.00020821,2]
[321841390,1712560239014,-500.0,0.00020821,2]
[321841391,1712560239022,-500.0,0.00020821,2]
[321841392,1712560239032,-500.0,0.00020821,2]
[321841393,1712560239041,-500.0,0.00020821,2]
[321841394,1712560239050,-560.54,0.00020821,2]
[321841395,1712560239061,-560.54,0.00020821,2]
[321841396,1712560239070,-560.54,0.00020821,2]
[321841397,1712560239083,-500.0,0.00020821,2]
[321841398,1712560239092,-500.0,0.00020821,2]
[321841399,1712560239101,-500.0,0.00020821,2]
[321841400,1712560239111,-500.0,0.00020821,2]
[321841401,1712560239120,-500.0,0.00020821,2]
[321841402,1712560239129,-803.17,0.00020821,2]
[321841403,1712560239139,-803.17,0.00020821,2]
[321841404,1712560239149,-803.17,0.00020821,2]
[321841405,1712560239158,-500.0,0.00020821,2]
[321841406,1712560239167,-500.0,0.00020821,2]
[321841407,1712560239176,-500.0,0.00020821,2]
[321841408,1712560239185,-500.0,0.00020821,2]
[321841409,1712560239195,-500.0,0.00020821,2]
[321841410,1712560239204,-500.0,0.00020821,2]
[321841411,1712560239216,-500.0,0.00020821,2]
[321841412,1712560239226,-253.2,0.00020821,2]
[321841413,1712560239236,-500.0,0.00020821,2]
[321841414,1712560239244,-500.0,0.00020821,2]
[321841415,1712560239253,-500.0,0.00020821,2]
[321841416,1712560239262,-597.24,0.00020821,2]
[321841417,1712560239271,-597.24,0.00020821,2]
[321841418,1712560239281,-597.24,0.00020821,2]
[321841419,1712560239290,-500.0,0.00020821,2]
[321841420,1712560239300,-500.0,0.00020821,2]
[321841421,1712560239309,-500.0,0.00020821,2]
[321841422,1712560239318,-500.0,0.00020821,2]
[321841423,1712560239327,-500.0,0.00020821,2]
[321841424,1712560239337,-500.0,0.00020821,2]
[321841425,1712560239347,-500.0,0.00020821,2]
[321841426,1712560239356,-500.0,0.00020821,2]
[321841427,1712560239365,-500.0,0.00020821,2]
[321841428,1712560239374,-189.41793463,0.00020821,2]
[321841429,1712560239384,-500.0,0.00020821,2]
[321841430,1712560239393,-500.0,0.00020821,2]
[321841431,1712560239402,-500.0,0.00020821,2]
[321841432,1712560239411,-500.0,0.00020821,2]
[321841433,1712560239421,-500.0,0.00020821,2]
[321841434,1712560239430,-500.0,0.00020821,2]
[321841435,1712560239439,-500.0,0.00020821,2]
[321841436,1712560239448,-500.0,0.00020821,2]
[321841437,1712560239457,-500.0,0.00020821,2]
[321841438,1712560239468,-500.0,0.00020821,2]
[321841439,1712560239476,-500.0,0.00020821,2]
[321841440,1712560239485,-500.0,0.00020821,2]
[321841441,1712560239496,-500.0,0.00020821,2]
[321841442,1712560239508,-500.0,0.00020821,2]
[321841443,1712560239517,-897.35,0.00020821,2]
[321841444,1712560239526,-897.35,0.00020821,2]
[321841445,1712560239535,-897.35,0.00020821,2]
[321841446,1712560239545,-150.0,0.00020821,2]
[321841447,1712560239555,-385.05,0.00020821,2]
[321841448,1712560239564,-500.0,0.00020821,2]
[321841449,1712560239573,-500.0,0.00020821,2]
[321841450,1712560239583,-500.0,0.00020821,2]
[321841451,1712560239592,-500.0,0.00020821,2]
[321841452,1712560239602,-500.0,0.00020821,2]
[321841453,1712560239611,-500.0,0.00020821,2]
[321841454,1712560239621,-500.0,0.00020821,2]
[321841455,1712560239632,-264.38,0.00020821,2]
[321841456,1712560239641,-500.0,0.00020821,2]
[321841457,1712560239650,-532.8494566,0.00020821,2]
[321841458,1712560239660,-500.0,0.00020821,2]
[321841459,1712560239671,-500.0,0.00020821,2]
[321841460,1712560239680,-500.0,0.00020821,2]
[321841461,1712560239689,-500.0,0.00020821,2]
[321841462,1712560239698,-500.0,0.00020821,2]
[321841463,1712560239707,-269.15452375,0.00020821,2]
[321841464,1712560239718,-500.0,0.00020821,2]
[321841465,1712560239727,-500.0,0.00020821,2]
[321841466,1712560239735,-500.0,0.00020821,2]
[321841467,1712560239745,-500.0,0.00020821,2]
[321841468,1712560239755,-500.0,0.00020821,2]
[321841469,1712560239764,-500.0,0.00020821,2]
[321841470,1712560239774,-500.0,0.00020821,2]
[321841471,1712560239783,-500.0,0.00020821,2]
[321841472,1712560239792,-500.0,0.00020821,2]
[321841473,1712560239801,-500.0,0.00020821,2]
[321841474,1712560239810,-500.0,0.00020821,2]
[321841475,1712560239819,-500.0,0.00020821,2]
[321841476,1712560239828,-500.0,0.00020821,2]
[321841477,1712560239837,-2450.83,0.00020821,2]
[321841478,1712560239847,-686.75,0.00020821,2]
[321841479,1712560239856,-500.0,0.00020821,2]
[321841480,1712560239865,-500.0,0.00020821,2]
[321841481,1712560239874,-6245.18,0.00020821,2]
[321841482,1712560239883,-500.0,0.00020821,2]
[321841483,1712560239892,-500.0,0.00020821,2]
[321841484,1712560239901,-500.0,0.00020821,2]
[321841485,1712560239910,-540.03,0.00020821,2]
[321841486,1712560239922,-968.89,0.00020821,2]
[321841487,1712560239931,-500.0,0.00020821,2]
[321841488,1712560239942,-500.0,0.00020821,2]
[321841489,1712560239954,-553.46163355,0.00020821,2]
[321841490,1712560239964,-596.08,0.00020821,2]
[321841491,1712560239974,-500.0,0.00020821,2]
[321841492,1712560239983,-500.0,0.00020821,2]
[321841493,1712560239994,-500.0,0.00020821,2]
[321841494,1712560240003,-229.66,0.00020821,2]
[321841495,1712560240013,-500.0,0.00020821,2]
[321841496,1712560240022,-500.0,0.00020821,2]
[321841497,1712560240031,-500.0,0.00020821,2]
[321841498,1712560240040,-500.0,0.00020821,2]
[321841499,1712560240049,-500.0,0.00020821,2]
[321841500,1712560240058,-500.0,0.00020821,2]
[321841501,1712560240067,-557.52975916,0.00020821,2]
[321841502,1712560240076,-500.0,0.00020821,2]
[321841503,1712560240085,-500.0,0.00020821,2]
[321841504,1712560240094,-640.96,0.00020821,2]
[321841505,1712560240104,-500.0,0.00020821,2]
[321841506,1712560240113,-644.72455694,0.00020821,2]
[321841507,1712560240123,-500.0,0.00020821,2]
[321841508,1712560240132,-500.0,0.00020821,2]
[321841509,1712560240141,-500.0,0.00020821,2]
[321841510,1712560240151,-500.0,0.00020821,2]
[321841511,1712560240160,-500.0,0.00020821,2]
[321841512,1712560240169,-500.0,0.00020821,2]
[321841513,1712560240178,-500.0,0.00020821,2]
[321841514,1712560240187,-500.0,0.00020821,2]
[321841515,1712560240196,-500.0,0.00020821,2]
[321841516,1712560240206,-500.0,0.00020821,2]
[321841517,1712560240215,-611.11,0.00020821,2]
[321841518,1712560240227,-500.0,0.00020821,2]
[321841519,1712560240237,-613.00912645,0.00020821,2]
[321841520,1712560240246,-500.0,0.00020821,2]
[321841521,1712560240255,-500.0,0.00020821,2]
[321841522,1712560240265,-500.0,0.00020821,2]
[321841523,1712560240274,-500.0,0.00020821,2]
[321841524,1712560240284,-500.0,0.00020821,2]
[321841525,1712560240293,-500.0,0.00020821,2]
[321841526,1712560240302,-500.0,0.00020821,2]
[321841527,1712560240311,-562.18014895,0.00020821,2]
[321841528,1712560240320,-500.0,0.00020821,2]
[321841529,1712560240330,-500.0,0.00020821,2]
[321841530,1712560240339,-500.0,0.00020821,2]
[321841531,1712560240349,-500.0,0.00020821,2]
[321841532,1712560240358,-500.0,0.00020821,2]
[321841533,1712560240367,-444.44342569,0.00020821,2]
[321841534,1712560240376,-500.0,0.00020821,2]
[321841535,1712560240385,-500.0,0.00020821,2]
[321841536,1712560240394,-500.0,0.00020821,2]
[321841537,1712560240404,-558.16889409,0.00020821,2]
[321841538,1712560240413,-500.0,0.00020821,2]
[321841539,1712560240422,-500.0,0.00020821,2]
[321841540,1712560240431,-500.0,0.00020821,2]
[321841541,1712560240440,-500.0,0.00020821,2]
[321841542,1712560240449,-500.0,0.00020821,2]
[321841543,1712560240458,-500.0,0.00020821,2]
[321841544,1712560240467,-500.0,0.00020821,2]
[321841545,1712560240477,-272.9750103,0.00020821,2]
[321841546,1712560240486,-500.0,0.00020821,2]
[321841547,1712560240496,-361.16,0.00020821,2]
[321841548,1712560240510,-500.0,0.00020821,2]
[321841549,1712560240519,-340.32523106,0.00020821,2]
[321841550,1712560240530,-500.0,0.00020821,2]
[321841551,1712560240541,-342.04766773,0.00020825,2]
[321841552,1712560240551,-246.77969296,0.0002083,2]
[321841553,1712560240562,-246.77969296,0.00020853,2]
[321841554,1712560240573,-784.29171298,0.00020857,4]
[321841555,1712560240583,-246.77969296,0.00020877,2]
[321841556,1712560240592,-647.64398282,0.00020896,2]
[321841557,1712560240603,-647.64398282,0.00020897,2]
[321841558,1712560240612,-647.64398282,0.00020897,2]
[321841559,1712560240621,-647.64398282,0.00020898,2]
[321841560,1712560240630,-222.6629189,0.00020898,2]
[321841561,1712560240639,-152.20588175,0.00020898,2]
[321841562,1712560240649,-647.64398282,0.00020898,2]
[321841563,1712560240659,-647.64398282,0.00020899,2]
[321841564,1712560240669,-500.0,0.00020899,2]
[321841565,1712560240678,-500.0,0.00020899,2]
[321841566,1712560240687,-500.0,0.00020899,2]
[321841567,1712560240696,-500.0,0.00020899,2]
[321841568,1712560240705,-500.0,0.00020899,2]
[321841569,1712560240714,-500.0,0.00020899,2]
[321841570,1712560240724,-500.0,0.00020899,2]
[321841571,1712560240733,-500.0,0.00020899,2]
[321841572,1712560240743,-614.49830382,0.00020899,2]
[321841573,1712560240751,-500.0,0.00020899,2]
[321841574,1712560240760,-500.0,0.00020899,2]
[321841575,1712560240769,-500.0,0.00020899,2]
[321841576,1712560240778,-622.94370122,0.00020899,2]
[321841577,1712560240787,-500.0,0.00020899,2]
[321841578,1712560240795,-500.0,0.00020899,2]
[321841579,1712560240804,-500.0,0.00020899,2]
[321841582,1712560240813,-500.0,0.00020899,2]
[321841584,1712560240822,-500.0,0.00020899,2]
[321841586,1712560240832,-500.0,0.00020899,2]
[321841587,1712560240842,-500.0,0.00020899,2]
[321841588,1712560240853,-582.57862492,0.00020899,2]
[321841589,1712560240863,-500.0,0.00020899,2]
[321841590,1712560240872,-500.0,0.00020899,2]
[321841591,1712560240883,-500.0,0.00020899,2]
[321841592,1712560240892,-500.0,0.00020899,2]
[321841593,1712560240902,-583.35616717,0.00020899,2]
[321841594,1712560240912,-500.0,0.00020899,2]
[321841595,1712560240921,-500.0,0.00020899,2]
[321841596,1712560240930,-375.29,0.00020899,2]
[321841597,1712560240939,-500.0,0.00020899,2]
[321841598,1712560240949,-500.0,0.00020899,2]
[321841599,1712560240958,-500.0,0.00020899,2]
[321841600,1712560240968,-500.0,0.00020899,2]
[321841601,1712560240977,-386.81029284,0.00020899,2]
[321841602,1712560240986,-500.0,0.00020899,2]
[321841603,1712560240995,-540.86,0.00020899,2]
[321841604,1712560241005,-647.64398282,0.00020899,2]
[321841605,1712560241014,-386.81029283,0.000209,2]
[321841606,1712560241022,-116154.29822012,0.000209,2]
[321841607,1712560241031,-2802.0,0.000209,2]
[321841608,1712560241041,-647.64398282,0.000209,2]
[321841609,1712560241049,-246.77969296,0.000209,2]
[321841610,1712560241058,-386.81029283,0.000209,2]
[321841611,1712560241068,-398.33739479,0.000209,3]
[321841612,1712560241077,-189.123,0.00020984,2]
[321841613,1712560241086,-500.0,0.00020995,2]
[321841614,1712560241095,-462.67896557,0.00020995,2]
[321841615,1712560241104,-500.0,0.00020995,2]
[321841616,1712560241113,-444.06194168,0.00020995,2]
[321841617,1712560241122,-500.0,0.00020995,2]
[321841618,1712560241132,-500.0,0.00020995,2]
[321841619,1712560241141,-500.0,0.00020995,2]
[321841620,1712560241150,-150.0,0.00020995,2]
[321841621,1712560241159,-500.0,0.00020995,2]
[321841622,1712560241168,-500.0,0.00020995,2]
[321841623,1712560241178,-500.0,0.00020995,2]
[321841624,1712560241187,-500.0,0.00020995,2]
[321841625,1712560241196,-500.0,0.00020995,2]
[321841626,1712560241206,-500.0,0.00020995,2]
[321841627,1712560241215,-500.0,0.00020995,2]
[321841628,1712560241225,-500.0,0.00020995,2]
[321841629,1712560241234,-179.44,0.00020995,2]
[321841630,1712560241243,-500.0,0.00020995,2]
[321841631,1712560241251,-500.0,0.00020995,2]
[321841632,1712560241260,-500.0,0.00020995,2]
[321841633,1712560241269,-500.0,0.00020995,2]
[321841634,1712560241278,-500.0,0.00020995,2]
[321841635,1712560241287,-500.0,0.00020995,2]
[321841636,1712560241296,-2450.83,0.00020995,2]
[321841637,1712560241305,-686.75,0.00020995,2]
[321841638,1712560241314,-500.0,0.00020995,2]
[321841639,1712560241323,-6245.18,0.00020995,2]
[321841640,1712560241332,-500.0,0.00020995,2]
[321841641,1712560241341,-968.89,0.00020995,2]
[321841642,1712560241350,-500.0,0.00020995,2]
[321841643,1712560241359,-500.0,0.00020995,2]
[321841644,1712560241368,-500.0,0.00020995,2]
[321841645,1712560241377,-500.0,0.00020995,2]
[321841646,1712560241386,-500.0,0.00020995,2]
[321841647,1712560241395,-500.0,0.00020995,2]
[321841648,1712560241404,-500.0,0.00020995,2]
[321841649,1712560241413,-500.0,0.00020995,2]
[321841650,1712560241422,-500.0,0.00020995,2]
[321841651,1712560241431,-500.0,0.00020995,2]
[321841652,1712560241441,-500.0,0.00020995,2]
[321841653,1712560241450,-500.0,0.00020995,2]
[321841654,1712560241459,-500.0,0.00020995,2]
[321841655,1712560241468,-500.0,0.00020995,2]
[321841656,1712560241478,-280.25086343,0.00020996,2]
[321841657,1712560241486,-155.48586097,0.00020996,2]
[321841658,1712560241496,-155.33359218,0.00020996,2]
[321841659,1712560241509,-155.3879513,0.00020996,2]
[321841660,1712560241518,-206.18856688,0.00020996,2]
[321841661,1712560241527,-155.46761263,0.00020996,2]
[321841662,1712560241537,-160.86784009,0.00020996,2]
[321841663,1712560241548,-203.81818989,0.00020996,2]
[321841664,1712560241557,-155.49511206,0.00020996,2]
[321841665,1712560241566,-155.92385022,0.00020996,2]
[321841666,1712560241576,-155.0,0.00020996,2]
[321841667,1712560241585,-155.46160884,0.00020996,2]
[321841668,1712560241595,-178.30654644,0.00020996,2]
[321841669,1712560241604,-158.00011926,0.00020996,2]
[321841670,1712560241614,-23968.33144089,0.00020996,2]
[321841671,1712560241624,-7346.24310499,0.00020996,2]
[321841672,1712560241633,-309.45826612,0.00020996,2]
[321841673,1712560241642,-15376.5503,0.00020996,2]
[321841674,1712560241651,-554.25398322,0.00020996,2]
[321841675,1712560241660,-155.42876592,0.00020996,2]
[321841676,1712560241670,-155.95222521,0.00020996,2]
[321841677,1712560241679,-215.1986525,0.00020996,2]
[321841678,1712560241689,-554.85409526,0.00020996,2]
[321841679,1712560241697,-400.0,0.00020996,2]
[321841680,1712560241707,-155.83007409,0.00020996,2]
[321841681,1712560241716,-376.29834861,0.00020996,2]
[321841682,1712560241727,-321.51134969,0.00020996,2]
[321841683,1712560241737,-307.80096222,0.00020996,2]
[321841684,1712560241748,-155.43292015,0.00020996,2]
[321841685,1712560241757,-266.33427453,0.00020996,2]
[321841686,1712560241767,-520.479,0.00020996,2]
[321841687,1712560241776,-155.54591448,0.00020996,2]
[321841688,1712560241785,-155.36484884,0.00020996,2]
[321841689,1712560241795,-2994.02422326,0.00020996,2]
[321841690,1712560241804,-161.25740967,0.00020996,2]
[321841691,1712560241815,-257.69323348,0.00020996,2]
[321841692,1712560241825,-161.60671238,0.00020996,2]
[321841693,1712560241834,-157.76540565,0.00020996,2]
[321841694,1712560241843,-260.08259237,0.00020996,2]
[321841695,1712560241852,-156.42033971,0.00020996,2]
[321841696,1712560241862,-527.75226015,0.00020996,2]
[321841697,1712560241871,-500.0,0.00020996,2]
[321841698,1712560241880,-500.0,0.00020996,2]
[321841699,1712560241889,-500.0,0.00020996,2]
[321841700,1712560241898,-500.0,0.00020996,2]
[321841701,1712560241907,-500.0,0.00020996,2]
[321841702,1712560241916,-692.7,0.00020996,2]
[321841703,1712560241925,-513.31,0.00020996,2]
[321841704,1712560241935,-500.0,0.00020996,2]
[321841705,1712560241944,-500.0,0.00020996,2]
[321841706,1712560241954,-560.54,0.00020996,2]
[321841707,1712560241963,-500.0,0.00020996,2]
[321841708,1712560241973,-803.17,0.00020996,2]
[321841709,1712560241983,-500.0,0.00020996,2]
[321841710,1712560241992,-597.24,0.00020996,2]
[321841711,1712560242002,-500.0,0.00020996,2]
[321841712,1712560242012,-500.0,0.00020996,2]
[321841713,1712560242022,-500.0,0.00020996,2]
[321841714,1712560242031,-500.0,0.00020996,2]
[321841715,1712560242041,-500.0,0.00020996,2]
[321841716,1712560242050,-897.35,0.00020996,2]
[321841717,1712560242061,-500.0,0.00020996,2]
[321841718,1712560242071,-4395.89511718,0.00020996,2]
[321841719,1712560242080,-171.06528897,0.00020996,2]
[321841720,1712560242089,-155.60731894,0.00020996,2]
[321841721,1712560242098,-156.80867088,0.00020996,3]
[321841722,1712560242107,-155.82663404,0.00020996,2]
[321841723,1712560242117,-5532.00830868,0.00020996,2]
[321841724,1712560242126,-155.0751412,0.00020996,2]
[321841725,1712560242135,-155.25241555,0.00020996,2]
[321841726,1712560242145,-155.0,0.00020996,2]
[321841727,1712560242155,-155.23203182,0.00020996,2]
[321841728,1712560242164,-682.38593014,0.00020996,2]
[321841729,1712560242173,-155.21459238,0.00020996,2]
[321841730,1712560242182,-156.69875186,0.00020996,2]
[321841731,1712560242192,-155.35884846,0.00020996,2]
[321841732,1712560242201,-9098.22864823,0.00020996,2]
[321841733,1712560242210,-156.35648961,0.00020996,2]
[321841734,1712560242221,-624.81043763,0.00020996,2]
[321841735,1712560242230,-359.95701884,0.00020996,2]
[321841736,1712560242239,-245.31869362,0.00020996,2]
[321841737,1712560242249,-155.44265864,0.00020996,2]
[321841738,1712560242424,-500.0,0.00020996,2]
[321841739,1712560242434,-500.0,0.00020996,2]
[321841740,1712560242444,-155.07513468,0.00020996,2]
[321841741,1712560242454,-256.98,0.00020996,2]
[321841742,1712560242464,-413.31,0.00020996,2]
[321841743,1712560242475,-160.49,0.00020996,2]
[321841744,1712560242485,-500.0,0.00020996,2]
[321841745,1712560242499,-500.0,0.00020996,2]
[321841746,1712560242511,-213.3,0.00020996,2]
[321841747,1712560242520,-500.0,0.00020996,2]
[321841748,1712560242530,-500.0,0.00020996,2]
[321841749,1712560242541,-278.9,0.00020996,2]
[321841750,1712560242551,-500.0,0.00020996,2]
[321841751,1712560242560,-326.13639391,0.00020996,2]
[321841752,1712560242570,-155.29437304,0.00020997,2]
[321841753,1712560242580,-1026.53382845,0.00020997,2]
[321841754,1712560242589,-812.08949876,0.00020997,2]
[321841755,1712560242599,-160.97033902,0.00020997,2]
[321841756,1712560242608,-215.43117381,0.00020997,2]
[321841757,1712560242617,-200.0,0.00020997,2]
[321841758,1712560242627,-12187.88901644,0.00020997,2]
[321841759,1712560242636,-313.67729988,0.00020997,2]
[321841760,1712560242646,-3220.93538866,0.00020997,2]
[321841761,1712560242656,-409.47715075,0.00020997,2]
[321841762,1712560242665,-263.97306041,0.00020997,2]
[321841763,1712560242674,-550.51311595,0.00020997,2]
[321841764,1712560242683,-52413.1871393,0.00020997,2]
[321841765,1712560242693,-500.0,0.00020997,2]
[321841766,1712560242702,-500.0,0.00020997,2]
[321841767,1712560242712,-500.0,0.00020997,2]
[321841768,1712560242722,-500.0,0.00020997,2]
[321841769,1712560242731,-513.30830533,0.00020997,2]
[321841770,1712560242740,-500.0,0.00020997,2]
[321841771,1712560242750,-500.0,0.00020997,2]
[321841772,1712560242759,-500.0,0.00020997,2]
[321841773,1712560242769,-500.0,0.00020997,2]
[321841774,1712560242778,-500.0,0.00020997,2]
[321841775,1712560242789,-487.77945128,0.00020997,2]
[321841776,1712560242799,-500.0,0.00020997,2]
[321841777,1712560242809,-500.0,0.00020997,2]
[321841778,1712560242819,-500.0,0.00020997,2]
[321841779,1712560242828,-500.0,0.00020997,2]
[321841780,1712560242837,-392.82,0.00020997,2]
[321841782,1712560242847,-150.0,0.00020997,2]
[321841783,1712560242855,-150.0,0.00020997,2]
[321841785,1712560242865,-150.0,0.00020997,2]
[321841786,1712560242874,-500.0,0.00020997,2]
[321841787,1712560242883,-229.86,0.00020997,2]
[321841788,1712560242893,-500.0,0.00020997,2]
[321841789,1712560242902,-500.0,0.00020997,2]
[321841790,1712560242911,-500.0,0.00020997,2]
[321841791,1712560242920,-500.0,0.00020997,2]